[Event "58th Akiba Rubinstein D 2022"]
[Site "Polanica-Zdroj"]
[Date "2022.08.15"]
[Round "3.12"]
[White "Liskiewicz, Jakub"]
[Black "Nowicki, Bartosz"]
[Result "1-0"]
[ECO "D10"]
[WhiteElo "1910"]
[BlackElo "2291"]
[Annotator "TA"]
[PlyCount "65"]
[EventDate "2022.08.13"]
[EventCountry "POL"]
[SourceTitle "playchess.com"]
[Source "ChessBase"]
[SourceQuality "1"]
[TimeControl "40/5400+30:1800+30"]

{[%evp 9,65,-8,-10,-10,4,10,11,8,14,0,8,1,15,-4,10,10,3,4,5,1,1,6,14,-3,48,46,71,77,70,72,72,70,64,82,128,122,122,120,139,131,180,112,163,147,344,239,315,298,453,446,950,899,999,594,29978,29979,29969,12562]} 1. d4 {[%emt 0:00:02]} d5 {[%emt 0:00:08]} 2. c4 {[%emt 0:00:06]} c6 {[%emt 0:00:19]} 3. Nc3 {[%emt 0:00:07]} Nf6 {[%emt 0:00:07]} 4. Bf4 {[%emt 0:00:07]} dxc4 {[%emt 0:01:16]} 5. a4 {[%emt 0:00:13]} Bf5 {[%emt 0:00:20]} 6. e3 {[%emt 0:00:25] D10: Slav Defence: 3 cxd5 (without early Nf3) and 3 Nc3.} e6 {[%emt 0:00:52]} (6... Qb6 {looks sharper.} 7. Bxc4 Qxb2 8. Rc1 Nbd7) 7. Bxc4 {[%emt 0:00:09]} Bd6 {[%emt 0:03:17]} 8. Bxd6 {[%emt 0:03:52] The position is equal.} Qxd6 {[%emt 0:00:01]} 9. Nf3 {[%emt 0:01:39]} Nbd7 {[%emt 0:02:41]} 10. O-O {[%emt 0:00:48]} O-O {[%emt 0:02:33] [#]} 11. Qe2 $146 {[%emt 0:05:27]} ({Predecessor:} 11. h3 Ne4 12. a5 Ndf6 13. Nh4 Bg6 14. Nxg6 hxg6 15. Qc2 Nxc3 16. bxc3 e5 17. Rfb1 {1-0 (57) Yee,P-Li,C Langley 2006}) 11... e5 {[%emt 0:10:39]} 12. dxe5 Nxe5 {[%emt 0:00:15]} 13. Rad1 {[%emt 0:16:04]} Nxf3+ {[%emt 0:03:16]} 14. Qxf3 {[%emt 0:01:03]} Qe5 {[%emt 0:02:21] Threatens to win with ...Bg4.} 15. Rd4 {[%emt 0:04:44] Against Bg4} Bg6 {[%emt 0:09:35]} 16. Rfd1 {[%emt 0:08:55]} Bh5 {[%emt 0:04:02]} (16... c5 $11 17. Rf4 b6) 17. g4 $14 {[%emt 0:00:21]} Bxg4 {[%emt 0:01:21]} 18. Rxg4 {[%emt 0:00:11]} Nxg4 {[%emt 0:00:17]} 19. Qxg4 {[%emt 0:00:09] Black must now prevent Ne4.} Rad8 {[%emt 0:04:11]} 20. Rd7 {[%emt 0:03:36]} Rxd7 {[%emt 0:03:00]} 21. Qxd7 {[%emt 0:00:08]} Qc5 {[%emt 0:04:31] [#]} (21... Qg5+ $142 22. Kf1 Qh4) 22. b3 $1 $16 {[%emt 0:02:55] White is much more active.} Qg5+ {[%emt 0:06:31]} 23. Kf1 {[%emt 0:00:37]} Qe5 {[%emt 0:01:02][%csl LRc3,LRh2]} 24. Ne2 {[%emt 0:02:32]} Qxh2 {[%emt 0:05:39]} (24... b5 $16) 25. Ng3 {[%emt 0:02:10]} ({Better is} 25. Qxb7 $18 Qh3+ 26. Kg1) 25... h5 {[%emt 0:07:32]} (25... b5 $16 26. axb5 cxb5 27. Bxb5 h5) 26. Nf5 $18 {[%emt 0:05:08][%mdl 1024] White has strong compensation.} Qe5 {[%emt 0:08:09] A mistake that costs the game.} (26... Qh1+ $16 27. Ke2 Qe4) 27. Nd6 {[%emt 0:01:41][%cal Rd6f7]} Qa1+ {[%emt 0:01:38]} 28. Kg2 {[%emt 0:00:18][%cal Rc4f7]} Qf6 {[%emt 0:02:46] [#]} (28... Qd1 {keeps fighting.} 29. Bxf7+ Kh7 30. Qf5+ Kh8) 29. Nxf7 $1 {[%emt 0:03:58]} h4 {[%emt 0:05:10]} (29... b5 $2 30. axb5 cxb5 31. Qxb5 $18) (29... Qg6+ $142 30. Ng5+ Kh8) 30. f4 {[%emt 0:03:41] White wants to mate with Ng5+.} Qb2+ {[%emt 0:06:17]} 31. Kf3 {[%emt 0:00:35] Qf5 would kill now.} Qf6 {[%emt 0:03:20] Against Qf5} 32. Ng5+ {[%emt 0:01:17]} Kh8 {[%emt 0:00:10]} 33. Qg4 {[%emt 0:00:14] Weighted Error Value: White=0.24 (precise) /Black=0.52} 1-0

[Event "58th Akiba Rubinstein D 2022"]
[Site "Polanica-Zdroj"]
[Date "2022.08.15"]
[Round "3.13"]
[White "Kryzia, Wiktor"]
[Black "Latacz, Grzegorz"]
[Result "1-0"]
[ECO "C15"]
[WhiteElo "1764"]
[BlackElo "1449"]
[Annotator "NA RC"]
[PlyCount "67"]
[EventDate "2022.08.13"]
[EventCountry "POL"]
[SourceTitle "playchess.com"]
[Source "ChessBase"]
[SourceQuality "1"]
[TimeControl "40/5400+30:1800+30"]

1. e4 {[%emt 0:00:03]} e6 {[%emt 0:00:25]} 2. d4 {[%emt 0:00:07]} d5 {[%emt 0:00:03]} 3. Nc3 {[%emt 0:00:28]} Bb4 {[%emt 0:00:11]} 4. Qd3 {[%emt 0:00:46]} dxe4 {[%emt 0:08:06]} 5. Qxe4 {[%emt 0:01:23]} Bxc3+ {[%emt 0:03:11]} 6. bxc3 {[%emt 0:00:26]} Nf6 {[%emt 0:00:56]} 7. Qh4 {[%emt 0:00:08]} b6 {[%emt 0:10:04]} 8. Bg5 {[%emt 0:06:03]} Bb7 {[%emt 0:00:59]} 9. Nf3 {[%emt 0:10:05]} Bxf3 {[%emt 0:20:59]} 10. gxf3 {[%emt 0:00:02]} a6 {[%emt 0:08:08]} 11. Bd3 {[%emt 0:02:09]} c6 {[%emt 0:03:49]} 12. Be4 {[%emt 0:07:59]} Ra7 {[%emt 0:00:38]} 13. Rb1 {[%emt 0:03:20]} b5 {[%emt 0:01:01]} 14. Rg1 {[%emt 0:09:13]} Kf8 {[%emt 0:06:44]} 15. Qg3 {[%emt 0:16:08]} Nxe4 {[%emt 0:02:49]} 16. fxe4 {[%emt 0:00:17]} f6 {[%emt 0:01:37]} 17. Bf4 {[%emt 0:00:11]} Rb7 {[%emt 0:01:24]} 18. Bd6+ {[%emt 0:10:56]} Ke8 {[%emt 0:00:31]} 19. d5 {[%emt 0:04:51]} e5 {[%emt 0:03:48]} 20. Bxb8 {[%emt 0:01:01]} Qxb8 {[%emt 0:00:22]} 21. dxc6 {[%emt 0:00:12]} Rc7 {[%emt 0:00:54]} 22. Rd1 {[%emt 0:00:30]} Rg8 {[%emt 0:04:07]} 23. Qd3 {[%emt 0:02:57]} Qc8 {[%emt 0:00:50]} 24. Qd5 {[%emt 0:01:41]} Ke7 {[%emt 0:01:08]} 25. Qc5+ {[%emt 0:01:40]} Ke8 {[%emt 0:01:40]} 26. Rd6 {[%emt 0:00:15]} Qh3 {[%emt 0:04:06]} 27. Rg3 {[%emt 0:00:25]} Qc8 {[%emt 0:02:24]} 28. Qd5 {[%emt 0:01:38]} Ke7 {[%emt 0:00:55]} 29. Rd3 {[%emt 0:00:25]} Qg4 {[%emt 0:01:31]} 30. Rd7+ {[%emt 0:01:03]} Rxd7 {[%emt 0:00:22]} 31. cxd7 {[%emt 0:04:59]} Rd8 {[%emt 0:01:00]} 32. Rg3 {[%emt 0:00:20]} Qh5 {[%emt 0:01:51]} 33. Rxg7+ {[%emt 0:00:08]} Kf8 {[%emt 0:00:12]} 34. Qg8# 1-0

[Event "58th Akiba Rubinstein D 2022"]
[Site "Polanica-Zdroj"]
[Date "2022.08.15"]
[Round "3.14"]
[White "Bednarkiewicz, Jakub"]
[Black "Markiewicz, Czeslaw"]
[Result "0-1"]
[ECO "D51"]
[WhiteElo "1545"]
[BlackElo "1750"]
[Annotator "NA RC"]
[PlyCount "86"]
[EventDate "2022.08.13"]
[EventCountry "POL"]
[SourceTitle "playchess.com"]
[Source "ChessBase"]
[SourceQuality "1"]
[TimeControl "40/5400+30:1800+30"]

1. d4 {[%emt 0:00:03]} e6 {[%emt 0:00:13]} 2. c4 {[%emt 0:00:05]} d5 {[%emt 0:00:10]} 3. Nc3 {[%emt 0:00:26]} Nf6 {[%emt 0:00:09]} 4. Bg5 {[%emt 0:00:56]} Nbd7 {[%emt 0:00:15]} 5. Nf3 {[%emt 0:02:18]} c6 {[%emt 0:00:16]} 6. a3 {[%emt 0:04:40]} a5 {[%emt 0:01:09]} 7. e3 {[%emt 0:01:59]} Be7 {[%emt 0:00:17]} 8. Rc1 {[%emt 0:01:55]} O-O {[%emt 0:00:17]} 9. Bd3 {[%emt 0:00:45]} dxc4 {[%emt 0:01:56]} 10. Bxc4 {[%emt 0:00:24]} h6 {[%emt 0:00:31]} 11. Bh4 {[%emt 0:00:21]} b5 {[%emt 0:01:13]} 12. Bd3 {[%emt 0:04:49]} Bb7 {[%emt 0:00:57]} 13. Bg3 {[%emt 0:04:23]} Rc8 {[%emt 0:07:33]} 14. h3 {[%emt 0:04:25]} Qb6 {[%emt 0:05:12]} 15. O-O {[%emt 0:02:59]} Rfd8 {[%emt 0:02:27]} 16. Ne5 {[%emt 0:07:17]} Nxe5 {[%emt 0:00:55]} 17. dxe5 {[%emt 0:05:34]} Nd7 {[%emt 0:03:56]} 18. Qg4 {[%emt 0:06:47]} b4 {[%emt 0:09:42]} 19. Ne4 {[%emt 0:09:17]} c5 {[%emt 0:00:31]} 20. Nd6 {[%emt 0:01:32]} Bxd6 {[%emt 0:00:22]} 21. exd6 {[%emt 0:00:20]} Nf6 {[%emt 0:01:05]} 22. Qh4 {[%emt 0:02:13]} Qc6 {[%emt 0:01:14]} 23. f3 {[%emt 0:02:31]} Qd5 {[%emt 0:01:02]} 24. Be4 {[%emt 0:05:21]} Nxe4 {[%emt 0:00:29]} 25. fxe4 {[%emt 0:00:01]} Qxe4 {[%emt 0:00:56]} 26. Qxe4 {[%emt 0:01:24]} Bxe4 {[%emt 0:00:08]} 27. axb4 {[%emt 0:01:22]} axb4 {[%emt 0:01:06]} 28. Ra1 {[%emt 0:01:40]} f6 {[%emt 0:00:15]} 29. Ra7 {[%emt 0:02:32]} e5 {[%emt 0:01:04]} 30. d7 {[%emt 0:02:22]} Rc6 {[%emt 0:03:22]} 31. Rd1 {[%emt 0:05:18]} Kf7 {[%emt 0:01:07]} 32. Be1 {[%emt 0:05:34]} Ke6 {[%emt 0:00:43]} 33. Kf2 {[%emt 0:01:42]} Rd6 {[%emt 0:02:04]} 34. Rxd6+ {[%emt 0:00:54]} Kxd6 {[%emt 0:00:10]} 35. g3 {[%emt 0:00:26]} Rxd7 {[%emt 0:00:27]} 36. Rxd7+ {[%emt 0:00:04]} Kxd7 {[%emt 0:00:11]} 37. h4 {[%emt 0:00:30]} h5 {[%emt 0:03:58]} 38. Ke2 {[%emt 0:01:01]} Ke6 {[%emt 0:00:29]} 39. Bd2 {[%emt 0:01:53]} Kd5 {[%emt 0:01:32]} 40. Be1 {[%emt 0:00:26]} Kc4 {[%emt 0:01:09]} 41. Kd2 {[%emt 0:30:17]} Kb3 {[%emt 0:30:31]} 42. Kc1 {[%emt 0:00:10]} c4 {[%emt 0:00:43]} 43. Kd1 {[%emt 0:03:18]} Kxb2 {[%emt 0:00:45]} 0-1

[Event "58th Akiba Rubinstein D 2022"]
[Site "Polanica-Zdroj"]
[Date "2022.08.15"]
[Round "3.15"]
[White "Marek, Grzegorz"]
[Black "Michalik, Marek"]
[Result "1-0"]
[ECO "B03"]
[WhiteElo "1478"]
[BlackElo "1742"]
[Annotator "NA RC"]
[PlyCount "91"]
[EventDate "2022.08.13"]
[EventCountry "POL"]
[SourceTitle "playchess.com"]
[Source "ChessBase"]
[SourceQuality "1"]
[TimeControl "40/5400+30:1800+30"]

1. e4 {[%emt 0:00:04]} Nf6 {[%emt 0:00:07]} 2. e5 {[%emt 0:00:05]} Nd5 {[%emt 0:00:06]} 3. c4 {[%emt 0:00:08]} Nb6 {[%emt 0:00:11]} 4. d4 {[%emt 0:00:08]} d6 {[%emt 0:00:21]} 5. exd6 {[%emt 0:00:09]} exd6 {[%emt 0:00:26]} 6. Nf3 {[%emt 0:00:49]} Bg4 {[%emt 0:00:44]} 7. h3 {[%emt 0:01:38]} Bh5 {[%emt 0:00:13]} 8. Be2 {[%emt 0:02:59]} Be7 {[%emt 0:00:22]} 9. Nc3 {[%emt 0:01:27]} O-O {[%emt 0:01:15]} 10. O-O {[%emt 0:00:25]} Bf6 {[%emt 0:02:04]} 11. Be3 {[%emt 0:04:58]} Re8 {[%emt 0:04:09]} 12. Rc1 {[%emt 0:07:24]} Nc6 {[%emt 0:03:53]} 13. b3 {[%emt 0:05:02]} Bg6 {[%emt 0:01:26]} 14. a4 {[%emt 0:11:24]} d5 {[%emt 0:02:41]} 15. c5 {[%emt 0:03:07]} Nc8 {[%emt 0:00:26]} 16. Bf4 {[%emt 0:08:37]} a6 {[%emt 0:00:15]} 17. Qd2 {[%emt 0:11:49]} h6 {[%emt 0:03:26]} 18. Rfe1 {[%emt 0:14:53]} N8e7 {[%emt 0:03:28]} 19. Bd3 {[%emt 0:04:26]} Bxd3 {[%emt 0:06:20]} 20. Qxd3 {[%emt 0:00:05]} Nb4 {[%emt 0:03:41]} 21. Qd2 {[%emt 0:03:02]} Qd7 {[%emt 0:02:21]} 22. Be5 {[%emt 0:00:49]} Qf5 {[%emt 0:02:48]} 23. Bxf6 {[%emt 0:10:27]} Qxf6 {[%emt 0:00:25]} 24. Nb5 {[%emt 0:02:58]} axb5 {[%emt 0:03:11]} 25. Qxb4 {[%emt 0:00:06]} bxa4 {[%emt 0:01:29]} 26. bxa4 {[%emt 0:00:46]} Nf5 {[%emt 0:13:57]} 27. Rxe8+ {[%emt 0:01:37]} Rxe8 {[%emt 0:00:13]} 28. Qxb7 {[%emt 0:00:06]} Nxd4 {[%emt 0:00:27]} 29. Nxd4 {[%emt 0:00:10]} Qxd4 {[%emt 0:00:12]} 30. Qxc7 {[%emt 0:00:40]} Qxa4 {[%emt 0:01:56]} 31. c6 {[%emt 0:00:46]} Qa3 {[%emt 0:02:27]} 32. Rb1 {[%emt 0:00:26]} Qe7 {[%emt 0:03:19]} 33. Qf4 {[%emt 0:02:59]} g5 {[%emt 0:05:06]} 34. Qg3 {[%emt 0:00:41]} d4 {[%emt 0:05:12]} 35. c7 {[%emt 0:01:38]} d3 {[%emt 0:00:46]} 36. Rb8 {[%emt 0:01:11]} d2 {[%emt 0:00:17]} 37. Rxe8+ {[%emt 0:00:15]} Qxe8 {[%emt 0:00:05]} 38. Qd6 {[%emt 0:00:27]} Qe1+ {[%emt 0:03:37]} 39. Kh2 {[%emt 0:00:28]} d1=Q {[%emt 0:00:15]} 40. c8=Q+ {[%emt 0:00:07]} Kh7 {[%emt 0:01:44]} 41. Qf5+ {[%emt 0:30:06]} Kg8 {[%emt 0:31:03]} 42. Qb8+ {[%emt 0:00:49]} Kg7 {[%emt 0:00:35]} 43. Qb2+ {[%emt 0:00:14]} Kg8 {[%emt 0:03:44]} 44. Qc8+ {[%emt 0:00:20]} Kh7 {[%emt 0:00:09]} 45. Qch8+ {[%emt 0:00:11]} Kg6 {[%emt 0:00:11]} 46. Qbf6+ {[%emt 0:00:04]} 1-0

[Event "58th Akiba Rubinstein D 2022"]
[Site "Polanica-Zdroj"]
[Date "2022.08.15"]
[Round "3.16"]
[White "Sleczka, Krzysztof"]
[Black "Ugorek, Kacper"]
[Result "1-0"]
[ECO "B03"]
[WhiteElo "1443"]
[BlackElo "1747"]
[Annotator "NA RC"]
[PlyCount "64"]
[EventDate "2022.08.13"]
[EventCountry "POL"]
[SourceTitle "playchess.com"]
[Source "ChessBase"]
[SourceQuality "1"]
[TimeControl "40/5400+30:1800+30"]

1. e4 {[%emt 0:00:03]} Nf6 {[%emt 0:00:06]} 2. e5 {[%emt 0:00:29]} Nd5 {[%emt 0:00:05]} 3. d4 {[%emt 0:01:32]} d6 {[%emt 0:00:10]} 4. f4 {[%emt 0:04:34]} Nb6 {[%emt 0:04:09]} 5. Nf3 {[%emt 0:03:24]} Bf5 {[%emt 0:06:02]} 6. Bd3 {[%emt 0:11:45]} Bxd3 {[%emt 0:00:20]} 7. Qxd3 {[%emt 0:00:02]} e6 {[%emt 0:03:13]} 8. O-O {[%emt 0:03:50]} Nc6 {[%emt 0:00:35]} 9. a4 {[%emt 0:03:15]} a5 {[%emt 0:13:04]} 10. c3 {[%emt 0:05:33]} Be7 {[%emt 0:01:31]} 11. Nbd2 {[%emt 0:01:13]} d5 {[%emt 0:02:07]} 12. Rf2 {[%emt 0:09:27]} Qd7 {[%emt 0:01:21]} 13. Nb3 {[%emt 0:04:37]} Nxa4 {[%emt 0:18:08]} 14. Rxa4 {[%emt 0:02:07]} Nxe5 {[%emt 0:01:07]} 15. Nxe5 {[%emt 0:07:12]} Qxa4 {[%emt 0:00:08]} 16. Nd2 {[%emt 0:01:29]} O-O {[%emt 0:07:57]} 17. Ndf3 Qe8 {[%emt 0:03:06]} 18. Ng5 {[%emt 0:12:23]} g6 {[%emt 0:00:31]} 19. Qh3 {[%emt 0:00:20]} h5 {[%emt 0:03:37]} 20. g4 {[%emt 0:11:07]} f6 {[%emt 0:07:51]} 21. Nxe6 {[%emt 0:00:57]} fxe5 {[%emt 0:00:55]} 22. Nxf8 {[%emt 0:00:14]} Bxf8 {[%emt 0:00:48]} 23. fxe5 {[%emt 0:01:12]} Qd7 {[%emt 0:04:50]} 24. Rg2 {[%emt 0:02:17]} a4 {[%emt 0:02:13]} 25. Qd3 {[%emt 0:02:19]} hxg4 {[%emt 0:05:10]} 26. Qxg6+ {[%emt 0:00:44]} Bg7 {[%emt 0:00:42]} 27. Rxg4 {[%emt 0:01:24]} Ra6 {[%emt 0:00:30]} 28. Qh5 {[%emt 0:00:56]} a3 {[%emt 0:01:01]} 29. bxa3 {[%emt 0:01:37]} Qa4 {[%emt 0:01:04]} 30. Rg2 {[%emt 0:00:30]} Rb6 {[%emt 0:01:10]} 31. Rg4 Ra6 32. Rg2 Rb6 1-0

[Event "58th Akiba Rubinstein D 2022"]
[Site "Polanica-Zdroj"]
[Date "2022.08.15"]
[Round "3.17"]
[White "Pieczulis, Blazej"]
[Black "Bartosik, Dawid"]
[Result "0-1"]
[ECO "A40"]
[WhiteElo "1720"]
[BlackElo "1443"]
[Annotator "NA RC"]
[PlyCount "100"]
[EventDate "2022.08.13"]
[EventCountry "POL"]
[SourceTitle "playchess.com"]
[Source "ChessBase"]
[SourceQuality "1"]
[TimeControl "40/5400+30:1800+30"]

1. d4 {[%emt 0:00:11]} e5 {[%emt 0:00:15]} 2. dxe5 {[%emt 0:08:24]} d6 {[%emt 0:00:06]} 3. exd6 {[%emt 0:04:51]} Bxd6 {[%emt 0:00:08]} 4. g3 {[%emt 0:00:56]} Nc6 {[%emt 0:02:12]} 5. Bg2 {[%emt 0:01:58]} Bd7 {[%emt 0:01:42]} 6. Be3 {[%emt 0:03:07]} Qe7 {[%emt 0:01:00]} 7. Nf3 {[%emt 0:07:19]} O-O-O {[%emt 0:00:54]} 8. c3 {[%emt 0:04:55]} Bc5 9. Bxc5 {[%emt 0:12:25]} Qxc5 {[%emt 0:06:50]} 10. b4 {[%emt 0:03:00]} Qe7 11. Nbd2 {[%emt 0:07:14]} Nf6 {[%emt 0:38:32]} 12. O-O {[%emt 0:00:39]} Kb8 13. e3 {[%emt 0:04:18]} Ne5 {[%emt 0:13:12]} 14. Qc2 {[%emt 0:03:06]} Nxf3+ {[%emt 0:04:43]} 15. Bxf3 {[%emt 0:01:47]} h5 {[%emt 0:00:44]} 16. Nb3 {[%emt 0:05:37]} h4 {[%emt 0:01:57]} 17. Nc5 {[%emt 0:07:14]} Bc8 {[%emt 0:00:21]} 18. Rae1 {[%emt 0:03:42]} hxg3 {[%emt 0:02:14]} 19. fxg3 {[%emt 0:00:42]} Rh6 {[%emt 0:07:11]} 20. e4 {[%emt 0:05:39]} Rdh8 {[%emt 0:03:13]} 21. Re2 {[%emt 0:01:58]} Ng4 {[%emt 0:04:19]} 22. Bxg4 {[%emt 0:00:36]} Bxg4 {[%emt 0:00:06]} 23. Ref2 {[%emt 0:00:36]} Be6 {[%emt 0:05:02]} 24. Nxe6 {[%emt 0:01:20]} Qxe6 {[%emt 0:03:06]} 25. Qd3 {[%emt 0:05:19]} f6 {[%emt 0:01:46]} 26. Rd1 {[%emt 0:00:29]} b6 {[%emt 0:00:45]} 27. a4 {[%emt 0:00:10]} Qc6 {[%emt 0:02:32]} 28. a5 {[%emt 0:01:46]} b5 {[%emt 0:00:17]} 29. Ra2 {[%emt 0:01:35]} a6 {[%emt 0:00:17]} 30. Rc2 {[%emt 0:01:17]} Qe6 {[%emt 0:00:56]} 31. Qd5 {[%emt 0:01:08]} Qg4 {[%emt 0:00:41]} 32. Qd3 {[%emt 0:01:22]} Qe6 {[%emt 0:00:22]} 33. Rdd2 {[%emt 0:00:46]} f5 {[%emt 0:00:47]} 34. exf5 {[%emt 0:00:29]} Qe1+ {[%emt 0:00:15]} 35. Qf1 {[%emt 0:00:01]} Qe3+ {[%emt 0:00:34]} 36. Qf2 {[%emt 0:00:09]} Qg5 {[%emt 0:00:49]} 37. Qf3 {[%emt 0:00:52]} Rf6 {[%emt 0:00:16]} 38. Rd5 {[%emt 0:01:26]} c6 {[%emt 0:00:49]} 39. Re5 {[%emt 0:00:39]} Rhf8 {[%emt 0:00:31]} 40. Rf2 {[%emt 0:00:43]} R8f7 {[%emt 0:00:23]} 41. Qf4 {[%emt 0:30:42]} Qxf4 {[%emt 0:30:19]} 42. Rxf4 {[%emt 0:00:01]} Kc7 {[%emt 0:00:19]} 43. Kf2 {[%emt 0:00:33]} Kd6 {[%emt 0:00:18]} 44. Rc5 {[%emt 0:00:03]} Kc7 {[%emt 0:00:26]} 45. Ke3 {[%emt 0:00:23]} Rf8 {[%emt 0:00:14]} 46. h4 {[%emt 0:01:03]} Re8+ {[%emt 0:00:18]} 47. Re4 {[%emt 0:00:12]} Ref8 {[%emt 0:00:14]} 48. g4 {[%emt 0:00:48]} g6 {[%emt 0:00:33]} 49. Kf4 {[%emt 0:00:43]} Rd8 {[%emt 0:01:22]} 50. Kg5 {[%emt 0:00:29]} Rdd6 {[%emt 0:00:24]} 0-1

[Event "58th Akiba Rubinstein D 2022"]
[Site "Polanica-Zdroj"]
[Date "2022.08.15"]
[Round "3.18"]
[White "Jankowski, Franciszek"]
[Black "Bem, Tymoteusz"]
[Result "0-1"]
[ECO "A17"]
[WhiteElo "1483"]
[BlackElo "1679"]
[Annotator "NA RC"]
[PlyCount "44"]
[EventDate "2022.08.13"]
[EventCountry "POL"]
[SourceTitle "playchess.com"]
[Source "ChessBase"]
[SourceQuality "1"]
[TimeControl "40/5400+30:1800+30"]

1. c4 {[%emt 0:00:08]} Nf6 {[%emt 0:01:41]} 2. Nc3 {[%emt 0:00:14]} e6 {[%emt 0:00:48]} 3. Nf3 {[%emt 0:00:58]} d5 {[%emt 0:01:02]} 4. cxd5 {[%emt 0:02:03]} exd5 {[%emt 0:00:06]} 5. d4 {[%emt 0:00:07]} h6 {[%emt 0:03:06]} 6. Bf4 {[%emt 0:01:05]} Bd6 {[%emt 0:01:17]} 7. e3 {[%emt 0:18:20]} O-O {[%emt 0:14:31]} 8. Bd3 Bxf4 {[%emt 0:09:30]} 9. exf4 {[%emt 0:00:36]} Bg4 {[%emt 0:01:08]} 10. O-O {[%emt 0:01:16]} Qd6 {[%emt 0:04:25]} 11. h3 {[%emt 0:05:53]} Bxf3 {[%emt 0:00:22]} 12. Qxf3 {[%emt 0:00:18]} Nc6 {[%emt 0:03:01]} 13. Ne2 {[%emt 0:01:44]} Rfe8 {[%emt 0:01:46]} 14. Rad1 {[%emt 0:05:19]} Ne4 {[%emt 0:04:00]} 15. Rfe1 Qf6 {[%emt 0:16:29]} 16. Bb1 {[%emt 0:11:20]} Re7 {[%emt 0:07:37]} 17. Nc3 {[%emt 0:20:32]} Nd2 {[%emt 0:11:17]} 18. Qxd5 {[%emt 0:13:08]} Rxe1+ {[%emt 0:02:32]} 19. Rxe1 {[%emt 0:00:09]} Nxb1 {[%emt 0:04:53]} 20. Rxb1 {[%emt 0:07:21]} Qxf4 {[%emt 0:02:58]} 21. Ne2 {[%emt 0:03:16]} Qd2 {[%emt 0:00:44]} 22. Qe4 {[%emt 0:03:37]} Rd8 {[%emt 0:00:01]} 0-1

[Event "58th Akiba Rubinstein D 2022"]
[Site "Polanica-Zdroj"]
[Date "2022.08.15"]
[Round "3.19"]
[White "Ursnik, Patryk"]
[Black "Misiek, Stanislaw"]
[Result "0-1"]
[ECO "C47"]
[WhiteElo "1671"]
[BlackElo "1427"]
[Annotator "NA RC"]
[PlyCount "65"]
[EventDate "2022.08.13"]
[EventCountry "POL"]
[SourceTitle "playchess.com"]
[Source "ChessBase"]
[SourceQuality "1"]
[TimeControl "40/5400+30:1800+30"]

1. e4 {[%emt 0:10:31]} e5 {[%emt 0:00:09]} 2. Nf3 {[%emt 0:00:07]} Nc6 {[%emt 0:00:09]} 3. Nc3 {[%emt 0:00:02]} Nf6 {[%emt 0:00:38]} 4. d4 {[%emt 0:00:04]} exd4 {[%emt 0:00:38]} 5. Nxd4 {[%emt 0:00:06]} Nxe4 6. Nxe4 {[%emt 0:11:19]} Qe7 {[%emt 0:01:49]} 7. f3 {[%emt 0:00:19]} d5 {[%emt 0:00:14]} 8. Nxc6 {[%emt 0:01:06]} bxc6 {[%emt 0:00:08]} 9. Bd3 {[%emt 0:00:27]} dxe4 {[%emt 0:00:40]} 10. fxe4 {[%emt 0:00:36]} Bd7 {[%emt 0:03:54]} 11. O-O {[%emt 0:00:43]} O-O-O {[%emt 0:00:43]} 12. Qh5 {[%emt 0:00:44]} f6 {[%emt 0:07:41]} 13. Be3 {[%emt 0:00:46]} c5 {[%emt 0:04:19]} 14. Ba6+ {[%emt 0:00:37]} Kb8 {[%emt 0:01:18]} 15. Qd5 {[%emt 0:00:21]} Bc8 {[%emt 0:01:11]} 16. Qb3+ {[%emt 0:01:09]} Ka8 {[%emt 0:00:09]} 17. Bxc8 {[%emt 0:04:32]} Rxc8 {[%emt 0:00:18]} 18. Qa4 {[%emt 0:00:14]} Qe8 {[%emt 0:11:22]} 19. Qc4 {[%emt 0:01:02]} Rb8 {[%emt 0:01:47]} 20. a3 {[%emt 0:15:26]} Qb5 {[%emt 0:05:46]} 21. Qf7 Qc6 {[%emt 0:09:18]} 22. Qc4 {[%emt 0:13:55]} Re8 23. Rad1 {[%emt 0:05:39]} Bd6 {[%emt 0:11:14]} 24. Rd5 {[%emt 0:00:58]} Re7 {[%emt 0:02:10]} 25. Bxc5 {[%emt 0:05:30]} Rhe8 {[%emt 0:00:26]} 26. b4 {[%emt 0:00:26]} Rxe4 {[%emt 0:01:27]} 27. Qd3 {[%emt 0:01:44]} Re2 28. Rf2 {[%emt 0:08:29]} Re1+ {[%emt 0:17:25]} 29. Rf1 {[%emt 0:00:06]} Bxh2+ {[%emt 0:06:33]} 30. Kf2 {[%emt 0:07:30]} R8e2+ {[%emt 0:01:41]} 31. Kf3 {[%emt 0:00:31]} Re8 32. Kf2 R8e2+ 33. Kf3 0-1

[Event "58th Akiba Rubinstein D 2022"]
[Site "Polanica-Zdroj"]
[Date "2022.08.15"]
[Round "3.21"]
[White "Szczepanski, Krzysztof"]
[Black "Szalbierz, Piotr"]
[Result "1-0"]
[ECO "A04"]
[WhiteElo "1790"]
[BlackElo "1407"]
[Annotator "NA RC"]
[PlyCount "74"]
[EventDate "2022.08.13"]
[EventCountry "POL"]
[SourceTitle "playchess.com"]
[Source "ChessBase"]
[SourceQuality "1"]
[TimeControl "40/5400+30:1800+30"]

1. Nf3 {[%emt 0:00:13]} f5 {[%emt 0:00:06]} 2. d4 {[%emt 0:01:44]} Nf6 {[%emt 0:00:12]} 3. e3 {[%emt 0:01:53]} e6 {[%emt 0:00:37]} 4. Be2 {[%emt 0:00:37]} Be7 {[%emt 0:01:32]} 5. Bd2 {[%emt 0:04:12]} O-O {[%emt 0:02:39]} 6. Nc3 {[%emt 0:01:55]} b6 {[%emt 0:01:14]} 7. O-O {[%emt 0:02:28]} Bb7 {[%emt 0:00:20]} 8. Ne1 {[%emt 0:03:02]} d6 {[%emt 0:11:39]} 9. Bf3 {[%emt 0:00:11]} Ne4 {[%emt 0:00:19]} 10. Nxe4 {[%emt 0:02:19]} fxe4 {[%emt 0:00:02]} 11. Bg4 {[%emt 0:01:12]} Rf6 {[%emt 0:02:03]} 12. c4 {[%emt 0:03:41]} d5 {[%emt 0:06:18]} 13. cxd5 {[%emt 0:08:06]} exd5 {[%emt 0:00:18]} 14. f4 Rg6 {[%emt 0:16:17]} 15. g3 {[%emt 0:16:25]} Bc8 {[%emt 0:05:07]} 16. Bxc8 {[%emt 0:04:11]} Qxc8 17. Rf2 {[%emt 0:10:33]} Qf5 {[%emt 0:07:29]} 18. b4 {[%emt 0:01:56]} Nd7 {[%emt 0:02:34]} 19. b5 {[%emt 0:02:23]} Nf6 {[%emt 0:05:20]} 20. Rg2 {[%emt 0:01:58]} Rh6 {[%emt 0:08:03]} 21. g4 {[%emt 0:02:07]} Qe6 {[%emt 0:10:45]} 22. g5 {[%emt 0:00:41]} Rh3 {[%emt 0:00:10]} 23. gxf6 {[%emt 0:01:15]} Qxf6 {[%emt 0:00:56]} 24. Rc1 {[%emt 0:01:04]} Bd6 {[%emt 0:00:19]} 25. Qe2 {[%emt 0:01:37]} Qe6 {[%emt 0:03:23]} 26. Kh1 {[%emt 0:02:28]} Rf8 {[%emt 0:00:10]} 27. Nc2 {[%emt 0:00:28]} Rf6 {[%emt 0:06:07]} 28. Qg4 {[%emt 0:01:28]} Qxg4 {[%emt 0:00:52]} 29. Rxg4 {[%emt 0:00:07]} Rfh6 {[%emt 0:00:21]} 30. Rg2 {[%emt 0:00:06]} Kh8 {[%emt 0:00:30]} 31. Rcg1 {[%emt 0:00:24]} g5 {[%emt 0:00:51]} 32. Rf1 g4 {[%emt 0:02:09]} 33. Kg1 {[%emt 0:06:55]} Be7 {[%emt 0:02:47]} 34. Be1 {[%emt 0:01:01]} Bd6 35. Bd2 Be7 36. Be1 Bh4 37. Bxh4 R6xh4 1-0